[Event "Allsvenskan Div II 5 2021/2022: SS Manhem II - SK Proletaren"]
[Site "Schackcentrum, Vegatan 20, Gothenburg, Sweden"]
[Date "2022.04.10"]
[Round "1.1"]
[White "Ulff, Johan"]
[Black "Lisander, Stefan"]
[Result "1-0"]
[TimeControl "90 minutes for 40 moves + 30 minutes for the rest of the game + 30 seconds per move from move one."]
[WhiteFideId "1733893"]
[BlackFideId "1711733"]
[WhiteElo "2114"]
[BlackElo "2055"]

1. d4 {[%clk 01:27:40]} {[%emt 00:03:20]} d5 {[%clk 01:30:42]} {[%emt
00:00:17]} 2. Bf4 {[%clk 01:28:06]} {[%emt 00:00:06]} Nf6 {[%clk 01:30:58]}
{[%emt 00:00:14]} 3. e3 {[%clk 01:28:27]} {[%emt 00:00:11]} e6 {[%clk
01:28:07]} {[%emt 00:03:18]} 4. Nf3 {[%clk 01:27:45]} {[%emt 00:01:13]} Be7
{[%clk 01:28:14]} {[%emt 00:00:21]} 5. Ne5 {[%clk 01:20:57]} {[%emt 00:07:21]}
O-O {[%clk 01:27:54]} {[%emt 00:00:50]} 6. Bd3 {[%clk 01:21:23]} {[%emt
00:00:04]} c5 {[%clk 01:27:49]} {[%emt 00:00:34]} 7. c3 {[%clk 01:15:29]}
{[%emt 00:06:24]} Nc6 {[%clk 01:27:43]} {[%emt 00:00:36]} 8. Nd2 {[%clk
01:12:31]} {[%emt 00:03:29]} Nd7 {[%clk 01:20:17]} {[%emt 00:07:55]} 9. Qh5
{[%clk 00:58:20]} {[%emt 00:14:41]} f5 {[%clk 01:20:17]} {[%emt 00:00:27]} 10.
h4 {[%clk 00:35:46]} {[%emt 00:23:06]} Nf6 {[%clk 01:20:00]} {[%emt 00:00:47]}
11. Qe2 {[%clk 00:36:12]} {[%emt 00:00:05]} Ne4 {[%clk 01:10:12]} {[%emt
00:10:17]} 12. h5 {[%clk 00:24:07]} {[%emt 00:12:36]} Nxe5 {[%clk 01:06:55]}
{[%emt 00:03:45]} 13. dxe5 {[%clk 00:22:02]} {[%emt 00:02:37]} Bd7 {[%clk
01:06:34]} {[%emt 00:00:50]} 14. g4 {[%clk 00:21:40]} {[%emt 00:00:53]} Rc8
{[%clk 01:03:52]} {[%emt 00:03:11]} 15. gxf5 {[%clk 00:21:11]} {[%emt
00:00:59]} exf5 {[%clk 01:04:11]} {[%emt 00:00:11]} 16. Nf3 {[%clk 00:19:31]}
{[%emt 00:02:11]} Be6 {[%clk 01:02:47]} {[%emt 00:01:52]} 17. Rg1 {[%clk
00:19:37]} {[%emt 00:00:25]} Rc6 {[%clk 00:56:49]} {[%emt 00:06:27]} 18. Bh6
{[%clk 00:17:49]} {[%emt 00:02:19]} Rf7 {[%clk 00:56:57]} {[%emt 00:00:21]} 19.
Bxe4 {[%clk 00:18:04]} {[%emt 00:00:16]} fxe4 {[%clk 00:55:00]} {[%emt
00:02:26]} 20. Ng5 {[%clk 00:18:24]} {[%emt 00:00:11]} Bxg5 {[%clk 00:55:09]}
{[%emt 00:00:20]} 21. Bxg5 {[%clk 00:18:48]} {[%emt 00:00:06]} Qa5 {[%clk
00:54:16]} {[%emt 00:01:22]} 22. Qd2 {[%clk 00:15:27]} {[%emt 00:03:52]} Qa6
{[%clk 00:47:09]} {[%emt 00:07:37]} 23. h6 {[%clk 00:11:28]} {[%emt 00:04:30]}
g6 {[%clk 00:46:52]} {[%emt 00:00:46]} 24. Bf6 {[%clk 00:09:43]} {[%emt
00:02:16]} Qd3 {[%clk 00:41:13]} {[%emt 00:06:07]} 25. Qxd3 {[%clk 00:08:04]}
{[%emt 00:02:10]} exd3 {[%clk 00:41:22]} {[%emt 00:00:21]} 26. Kd2 {[%clk
00:08:34]} c4 {[%clk 00:40:21]} {[%emt 00:01:31]} 27. b4 {[%clk 00:08:24]}
{[%emt 00:00:39]} Bf5 {[%clk 00:32:56]} {[%emt 00:07:54]} 28. a4 {[%clk
00:07:48]} {[%emt 00:01:06]} Bd7 {[%clk 00:26:52]} {[%emt 00:06:32]} 29. f3
{[%clk 00:07:55]} {[%emt 00:00:27]} Bf5 {[%clk 00:26:32]} {[%emt 00:00:49]} 30.
Rg5 {[%clk 00:06:33]} {[%emt 00:01:52]} Kf8 {[%clk 00:24:52]} {[%emt 00:02:09]}
31. b5 {[%clk 00:05:50]} {[%emt 00:01:14]} Rc8 {[%clk 00:20:51]} {[%emt
00:04:30]} 32. Rgg1 {[%clk 00:05:03]} {[%emt 00:01:18]} Ke8 {[%clk 00:16:53]}
{[%emt 00:04:28]} 33. Rge1 {[%clk 00:05:09]} {[%emt 00:00:25]} Kd7 {[%clk
00:16:54]} {[%emt 00:00:28]} 34. e4 {[%clk 00:05:30]} {[%emt 00:00:10]} dxe4
{[%clk 00:17:10]} {[%emt 00:00:14]} 35. fxe4 {[%clk 00:05:58]} {[%emt
00:00:02]} Be6 {[%clk 00:17:11]} {[%emt 00:00:28]} 36. Ke3 {[%clk 00:06:07]}
{[%emt 00:00:21]} Kc7 {[%clk 00:11:19]} {[%emt 00:06:22]} 37. Ra2 {[%clk
00:06:36]} {[%emt 00:00:02]} Rd7 {[%clk 00:10:13]} {[%emt 00:01:35]} 38. a5
{[%clk 00:05:21]} {[%emt 00:01:45]} Rg8 {[%clk 00:09:32]} {[%emt 00:01:11]} 39.
Rg2 {[%clk 00:04:02]} {[%emt 00:01:50]} Ra8 {[%clk 00:04:00]} {[%emt 00:06:01]}
40. Rh1 {[%clk 00:04:04]} {[%emt 00:00:29]} a6 {[%clk 00:02:10]} {[%emt
00:02:20]} 41. Rb1 {[%clk 00:24:20]} {[%emt 00:10:14]} axb5 {[%clk 00:25:02]}
{[%emt 00:07:38]} 42. Rxb5 {[%clk 00:24:42]} {[%emt 00:00:08]} Ra6 {[%clk
00:25:03]} {[%emt 00:00:28]} 43. Rgb2 {[%clk 00:24:51]} {[%emt 00:00:22]} Kc8
{[%clk 00:22:45]} {[%emt 00:02:48]} 44. Kd2 {[%clk 00:24:46]} {[%emt 00:00:35]}
Rf7 {[%clk 00:18:37]} {[%emt 00:04:37]} 45. Rb6 {[%clk 00:23:06]} {[%emt
00:02:10]} g5 {[%clk 00:09:26]} {[%emt 00:09:41]} 46. Rxa6 {[%clk 00:19:32]}
{[%emt 00:04:05]} bxa6 {[%clk 00:09:48]} {[%emt 00:00:09]} 47. Rb6 {[%clk
00:18:59]} {[%emt 00:01:03]} g4 {[%clk 00:10:11]} {[%emt 00:00:06]} 48. Rxe6
{[%clk 00:18:14]} {[%emt 00:01:15]} Kd7 {[%clk 00:10:03]} {[%emt 00:00:37]} 49.
Rxa6 {[%clk 00:16:43]} {[%emt 00:02:02]} g3 {[%clk 00:09:43]} {[%emt 00:00:50]}
50. e6+ {[%clk 00:16:40]} {[%emt 00:00:33]} 1-0

[Event "Allsvenskan Div II 5 2021/2022: SS Manhem II - SK Proletaren"]
[Site "Schackcentrum, Vegatan 20, Gothenburg, Sweden"]
[Date "2022.04.10"]
[Round "1.2"]
[White "Svensson, Lars"]
[Black "Naglic, Zdenko"]
[Result "1-0"]
[TimeControl "90 minutes for 40 moves + 30 minutes for the rest of the game + 30 seconds per move from move one."]
[WhiteFideId "1734466"]
[BlackFideId "1712047"]
[WhiteElo "2019"]
[BlackElo "1619"]

1. e4 {[%clk 01:31:24]} {[%emt 00:00:05]} c5 {[%clk 01:26:44]} {[%emt
00:05:17]} 2. Nf3 {[%clk 01:31:07]} {[%emt 00:00:22]} g6 {[%emt 00:00:09]} 3.
d4 {[%emt 00:00:50]} cxd4 {[%clk 01:26:02]} {[%emt 00:00:13]} 4. Nxd4 {[%clk
01:31:31]} {[%emt 00:00:07]} Bg7 {[%emt 00:00:07]} 5. Be3 {[%emt 00:01:14]} Nc6
{[%clk 01:24:57]} {[%emt 00:00:11]} 6. c4 {[%clk 01:27:24]} {[%emt 00:04:38]}
d6 {[%clk 01:25:16]} {[%emt 00:00:11]} 7. Nc3 {[%clk 01:27:41]} {[%emt
00:00:13]} Nf6 {[%clk 01:24:57]} {[%emt 00:00:48]} 8. Be2 {[%clk 01:27:58]}
{[%emt 00:00:13]} a6 {[%clk 01:24:25]} {[%emt 00:01:03]} 9. Nc2 {[%clk
01:26:32]} {[%emt 00:01:56]} Bd7 {[%clk 01:24:35]} {[%emt 00:00:21]} 10. O-O
{[%clk 01:26:32]} {[%emt 00:00:29]} Rc8 {[%clk 01:21:13]} {[%emt 00:03:53]} 11.
Na4 {[%clk 01:16:50]} {[%emt 00:10:12]} Na5 {[%clk 01:20:59]} {[%emt 00:00:44]}
12. Bb6 {[%clk 01:13:32]} {[%emt 00:03:48]} Rc7 {[%clk 01:21:10]} {[%emt
00:00:19]} 13. Nc3 {[%clk 01:06:26]} {[%emt 00:07:36]} Nc6 {[%clk 01:21:21]}
{[%emt 00:00:19]} 14. Ne3 {[%clk 01:06:05]} {[%emt 00:00:51]} Qb8 {[%clk
01:21:42]} {[%emt 00:00:09]} 15. Bxc7 {[%clk 01:03:47]} {[%emt 00:02:49]} Qxc7
{[%emt 00:00:03]} 16. Rc1 {[%emt 00:02:42]} O-O {[%clk 01:08:35]} {[%emt
00:10:52]} 17. Ned5 {[%clk 00:45:46]} {[%emt 00:18:30]} Qd8 {[%clk 00:58:21]}
{[%emt 00:10:43]} 18. Nxf6+ {[%clk 00:36:52]} {[%emt 00:09:24]} Bxf6 {[%emt
00:00:05]} 19. Qd2 {[%emt 00:01:54]} Nd4 {[%clk 00:56:40]} {[%emt 00:00:11]} 20.
Bd3 {[%clk 00:33:28]} {[%emt 00:03:56]} e5 {[%clk 00:47:55]} {[%emt 00:09:14]}
21. Rcd1 {[%clk 00:26:26]} {[%emt 00:07:32]} Bg5 {[%clk 00:47:27]} {[%emt
00:00:57]} 22. Qe1 {[%clk 00:26:39]} {[%emt 00:00:18]} Bf4 {[%emt 00:01:13]} 23.
f3 {[%emt 00:04:19]} Bc6 {[%clk 00:41:58]} {[%emt 00:00:28]} 24. Kh1 {[%clk
00:25:01]} {[%emt 00:02:08]} f5 {[%clk 00:39:38]} {[%emt 00:02:50]} 25. Ne2
{[%clk 00:20:58]} {[%emt 00:04:33]} fxe4 {[%emt 00:01:27]} 26. Bxe4 {[%emt
00:02:44]} Bxe4 {[%emt 00:00:39]} 27. Nxd4 {[%emt 00:09:39]} exd4 {[%emt
00:00:15]} 28. Qxe4 {[%emt 00:06:43]} Be3 {[%emt 00:00:06]} 29. Qxb7 {[%emt
00:01:00]} Qa5 {[%clk 00:14:31]} {[%emt 00:03:04]} 30. a3 {[%clk 00:07:48]}
{[%emt 00:13:41]} Qa4 {[%clk 00:13:43]} {[%emt 00:01:17]} 31. Qd5+ {[%clk
00:07:26]} {[%emt 00:00:53]} Kg7 {[%clk 00:13:47]} {[%emt 00:00:26]} 32. Rxd4
{[%clk 00:02:47]} {[%emt 00:05:09]} Bxd4 {[%clk 00:13:36]} {[%emt 00:00:40]} 33.
Qxd4+ {[%clk 00:03:16]} {[%emt 00:00:02]} Rf6 {[%clk 00:13:51]} {[%emt
00:00:15]} 34. Re1 {[%clk 00:03:01]} {[%emt 00:00:46]} Qd7 {[%clk 00:14:13]}
{[%emt 00:00:07]} 35. c5 {[%clk 00:02:10]} {[%emt 00:01:22]} Kf7 {[%clk
00:14:26]} {[%emt 00:00:16]} 36. Qd5+ {[%clk 00:02:25]} {[%emt 00:00:16]} Kf8
{[%clk 00:14:52]} {[%emt 00:00:04]} 37. c6 {[%clk 00:01:45]} {[%emt 00:01:11]}
Qc7 {[%clk 00:15:12]} {[%emt 00:00:09]} 38. b4 {[%clk 00:01:32]} {[%emt
00:00:43]} Rf5 {[%clk 00:15:36]} {[%emt 00:00:06]} 39. Qe4 {[%clk 00:01:22]}
{[%emt 00:00:40]} d5 {[%clk 00:15:55]} {[%emt 00:00:11]} 40. Qe8+ {[%clk
00:01:34]} {[%emt 00:00:19]} Kg7 {[%clk 00:09:40]} {[%emt 00:06:45]} 41. Re7+
{[%clk 00:01:49]} {[%emt 00:00:15]} Kh6 {[%emt 00:00:44]} 42. Rxc7 {[%emt
00:00:15]} a5 {[%clk 00:08:25]} {[%emt 00:00:47]} 43. Qe3+ {[%clk 00:02:08]}
{[%emt 00:00:10]} g5 {[%clk 00:07:49]} {[%emt 00:01:06]} 44. Qe6+ {[%clk
00:02:28]} {[%emt 00:00:11]} 1-0

[Event "Allsvenskan Div II 5 2021/2022: SS Manhem II - SK Proletaren"]
[Site "Schackcentrum, Vegatan 20, Gothenburg, Sweden"]
[Date "2022.04.10"]
[Round "1.3"]
[White "Funksjo, Andreas"]
[Black "Andreasson, Vincent"]
[Result "1/2-1/2"]
[TimeControl "90 minutes for 40 moves + 30 minutes for the rest of the game + 30 seconds per move from move one."]
[WhiteFideId "1731742"]
[BlackFideId "1721321"]
[WhiteElo "1721"]
[BlackElo "1993"]

1. c4 {[%clk 01:30:50]} {[%emt 00:00:08]} c6 {[%clk 01:30:57]} {[%emt
00:00:05]} 2. Nf3 {[%clk 01:30:16]} {[%emt 00:01:03]} d5 {[%clk 01:29:47]}
{[%emt 00:01:40]} 3. b3 {[%clk 01:27:03]} {[%emt 00:03:42]} Bf5 {[%clk
01:27:03]} {[%emt 00:03:14]} 4. g3 {[%clk 01:26:47]} {[%emt 00:00:47]} Nf6
{[%clk 01:27:14]} {[%emt 00:00:20]} 5. Bg2 {[%clk 01:26:43]} {[%emt 00:00:33]}
e6 {[%clk 01:27:09]} {[%emt 00:00:35]} 6. O-O {[%clk 01:26:43]} {[%emt
00:00:30]} Be7 {[%clk 01:26:38]} {[%emt 00:01:01]} 7. d3 {[%clk 01:26:05]}
{[%emt 00:01:07]} O-O {[%clk 01:26:34]} {[%emt 00:00:33]} 8. Nbd2 {[%clk
01:25:49]} {[%emt 00:00:46]} h6 {[%clk 01:24:09]} {[%emt 00:02:57]} 9. Bb2
{[%clk 01:24:45]} {[%emt 00:01:33]} Nbd7 {[%clk 01:24:04]} {[%emt 00:00:35]} 10.
Re1 {[%clk 01:23:59]} {[%emt 00:01:16]} Bh7 {[%clk 01:22:26]} {[%emt 00:02:08]}
11. e4 {[%clk 01:19:31]} {[%emt 00:04:58]} dxe4 {[%clk 01:20:55]} {[%emt
00:02:02]} 12. Nxe4 {[%clk 01:18:55]} {[%emt 00:01:05]} Nxe4 {[%clk 01:16:01]}
{[%emt 00:05:25]} 13. dxe4 {[%clk 01:19:11]} {[%emt 00:00:13]} Nc5 {[%clk
01:15:33]} {[%emt 00:00:59]} 14. Nd4 {[%clk 01:15:53]} {[%emt 00:03:48]} e5
{[%clk 01:11:17]} {[%emt 00:04:46]} 15. Nf5 {[%clk 01:15:49]} {[%emt 00:00:33]}
Bxf5 {[%clk 01:11:41]} {[%emt 00:00:06]} 16. exf5 {[%clk 01:16:08]} {[%emt
00:00:11]} Nd3 {[%clk 01:11:57]} {[%emt 00:00:14]} 17. Re2 {[%clk 01:15:39]}
{[%emt 00:00:59]} Nxb2 {[%clk 01:12:09]} {[%emt 00:00:18]} 18. Rxb2 {[%clk
01:15:49]} {[%emt 00:00:20]} Bc5 {[%clk 01:07:51]} {[%emt 00:04:48]} 19. Re2
{[%clk 00:59:12]} {[%emt 00:17:06]} Qf6 {[%clk 01:00:14]} {[%emt 00:08:08]} 20.
Be4 {[%clk 00:53:51]} {[%emt 00:05:51]} Rad8 {[%clk 00:59:57]} {[%emt
00:00:48]} 21. Qc2 {[%clk 00:53:54]} {[%emt 00:00:27]} Rd6 {[%clk 00:58:54]}
{[%emt 00:01:33]} 22. Rd1 {[%clk 00:51:37]} {[%emt 00:02:47]} Rfd8 {[%clk
00:59:12]} {[%emt 00:00:12]} 23. Red2 {[%clk 00:50:50]} {[%emt 00:01:17]} Rd4
{[%clk 00:56:59]} {[%emt 00:02:43]} 24. Kg2 {[%clk 00:48:10]} {[%emt 00:03:09]}
Kf8 {[%clk 00:57:02]} {[%emt 00:00:28]} 25. Rxd4 {[%clk 00:43:38]} {[%emt
00:05:02]} exd4 {[%clk 00:57:16]} {[%emt 00:00:16]} 26. Qd3 {[%clk 00:40:21]}
{[%emt 00:03:46]} Qe5 {[%clk 00:57:12]} {[%emt 00:00:35]} 27. f4 {[%clk
00:38:50]} {[%emt 00:02:01]} Qe7 {[%clk 00:55:12]} {[%emt 00:02:30]} 28. Re1
{[%clk 00:38:26]} {[%emt 00:00:54]} Re8 {[%clk 00:54:53]} {[%emt 00:00:49]} 29.
Re2 {[%clk 00:37:15]} {[%emt 00:01:41]} Qd8 {[%clk 00:55:11]} {[%emt 00:00:12]}
30. h4 {[%clk 00:35:54]} {[%emt 00:01:51]} Qa5 {[%clk 00:54:00]} {[%emt
00:01:41]} 31. g4 {[%clk 00:34:30]} {[%emt 00:01:54]} Qc3 {[%clk 00:49:25]}
{[%emt 00:05:05]} 32. Qxc3 {[%clk 00:28:42]} {[%emt 00:06:18]} dxc3 {[%clk
00:49:52]} {[%emt 00:00:03]} 33. Kf3 {[%clk 00:28:14]} {[%emt 00:00:57]} Rd8
{[%clk 00:50:00]} {[%emt 00:00:23]} 34. g5 {[%clk 00:27:03]} {[%emt 00:01:41]}
Rd2 {[%clk 00:47:19]} {[%emt 00:03:11]} 35. h5 {[%clk 00:24:40]} {[%emt
00:02:53]} f6 {[%clk 00:44:06]} {[%emt 00:03:43]} 36. g6 {[%clk 00:15:36]}
{[%emt 00:09:34]} Ba3 {[%clk 00:36:24]} {[%emt 00:08:13]} 37. Bc2 {[%clk
00:02:34]} {[%emt 00:13:32]} Bc1 {[%clk 00:36:21]} {[%emt 00:00:33]} 38. Rxd2
{[%clk 00:02:20]} {[%emt 00:00:43]} Bxd2 {[%clk 00:36:49]} {[%emt 00:00:02]} 39.
b4 {[%clk 00:01:09]} {[%emt 00:01:41]} Ke7 {[%clk 00:33:02]} {[%emt 00:04:17]}
40. Ke4 {[%clk 00:01:03]} {[%emt 00:00:35]} b6 {[%clk 00:32:02]} {[%emt
00:01:30]} 41. a4 {[%clk 00:00:47]} {[%emt 00:00:45]} Kd6 {[%clk 00:32:11]}
{[%emt 00:00:22]} 42. Kf3 {[%clk 00:25:43]} {[%emt 00:05:34]} a5 {[%clk
01:02:27]} {[%emt 00:00:14]} 43. b5 {[%clk 00:25:19]} {[%emt 00:00:54]} Kc5
{[%clk 00:59:56]} {[%emt 00:03:01]} 44. Ke4 {[%clk 00:24:58]} {[%emt 00:00:51]}
cxb5 {[%clk 00:45:27]} {[%emt 00:14:59]} 45. cxb5 {[%clk 00:25:15]} {[%emt
00:00:12]} Kc4 {[%clk 00:45:50]} {[%emt 00:00:08]} 46. Bd1 {[%clk 00:25:15]}
{[%emt 00:00:30]} Bc1 {[%clk 00:42:00]} {[%emt 00:04:20]} 47. Bc2 {[%clk
00:24:05]} {[%emt 00:01:40]} Ba3 {[%clk 00:42:26]} {[%emt 00:00:03]} 48. Bd1
{[%clk 00:23:09]} {[%emt 00:01:26]} Bd6 {[%clk 00:35:21]} 1/2-1/2

[Event "Allsvenskan Div II 5 2021/2022: SS Manhem II - SK Proletaren"]
[Site "Schackcentrum, Vegatan 20, Gothenburg, Sweden"]
[Date "2022.04.10"]
[Round "1.4"]
[White "Abrahamsson, Patrik"]
[Black "Magnusarson Borhammar, Emil"]
[Result "1-0"]
[TimeControl "90 minutes for 40 moves + 30 minutes for the rest of the game + 30 seconds per move from move one."]
[WhiteFideId "1716484"]
[BlackFideId "1746910"]
[WhiteElo "1993"]
[BlackElo "1679"]

1. e4 {[%clk 01:30:30]} {[%emt 17:33:40]} e5 {[%clk 01:24:52]} {[%emt
00:06:20]} 2. Nf3 {[%clk 01:31:13]} {[%emt 00:00:11]} Nc6 {[%clk 01:25:01]}
{[%emt 00:00:23]} 3. Bb5 {[%clk 01:31:35]} {[%emt 00:00:07]} Nf6 {[%clk
01:24:05]} {[%emt 00:01:26]} 4. d4 {[%clk 01:29:24]} {[%emt 00:02:41]} a6
{[%clk 01:20:43]} {[%emt 00:03:52]} 5. Ba4 {[%clk 01:29:48]} {[%emt 00:00:06]}
b5 {[%clk 01:18:48]} {[%emt 00:02:26]} 6. Bb3 {[%clk 01:26:36]} {[%emt
00:03:41]} Na5 {[%clk 01:00:09]} {[%emt 00:19:09]} 7. dxe5 {[%clk 01:19:34]}
{[%emt 00:07:32]} Nxb3 {[%clk 00:59:58]} {[%emt 00:00:41]} 8. axb3 {[%clk
01:18:52]} {[%emt 00:01:12]} Ng8 {[%clk 00:48:36]} {[%emt 00:11:51]} 9. O-O
{[%clk 01:14:09]} {[%emt 00:05:13]} h6 {[%clk 00:44:48]} {[%emt 00:04:19]} 10.
Nc3 {[%clk 01:12:58]} {[%emt 00:01:41]} Ne7 {[%clk 00:36:03]} {[%emt 00:09:15]}
11. Nxb5 {[%clk 01:11:32]} {[%emt 00:01:57]} Bb7 {[%clk 00:34:57]} {[%emt
00:01:36]} 12. Nc3 {[%clk 01:11:05]} {[%emt 00:00:57]} Ng6 {[%clk 00:32:00]}
{[%emt 00:03:26]} 13. Be3 {[%clk 01:09:24]} {[%emt 00:02:11]} Be7 {[%clk
00:30:35]} {[%emt 00:01:55]} 14. Nd5 {[%clk 01:07:54]} {[%emt 00:02:00]} O-O
{[%clk 00:29:38]} {[%emt 00:01:27]} 15. Qd4 {[%clk 01:03:02]} {[%emt 00:05:23]}
Re8 {[%clk 00:27:04]} {[%emt 00:03:04]} 16. Qc4 {[%clk 00:57:29]} {[%emt
00:06:03]} Rc8 {[%clk 00:24:52]} {[%emt 00:02:42]} 17. Rfd1 {[%clk 00:46:12]}
{[%emt 00:11:46]} Nf8 {[%clk 00:13:26]} {[%emt 00:11:57]} 18. Bc5 {[%clk
00:29:18]} {[%emt 00:17:24]} Bxc5 {[%clk 00:09:17]} {[%emt 00:04:39]} 19. Qxc5
{[%clk 00:26:13]} {[%emt 00:03:36]} Ne6 {[%clk 00:09:13]} {[%emt 00:00:34]} 20.
Qb4 {[%clk 00:24:16]} {[%emt 00:02:26]} Rb8 {[%clk 00:08:35]} {[%emt 00:01:09]}
21. Qc4 {[%clk 00:19:18]} {[%emt 00:05:28]} Kh8 {[%clk 00:06:00]} {[%emt
00:03:05]} 22. Rd2 {[%clk 00:16:32]} {[%emt 00:03:16]} Ra8 {[%clk 00:03:37]}
{[%emt 00:02:54]} 23. Rad1 {[%clk 00:16:41]} {[%emt 00:00:21]} Bc6 {[%clk
00:03:45]} {[%emt 00:00:21]} 24. Nc3 {[%clk 00:14:36]} {[%emt 00:02:35]} Qe7
{[%clk 00:03:39]} {[%emt 00:00:37]} 25. Nd5 {[%clk 00:12:17]} {[%emt 00:02:49]}
Bxd5 {[%clk 00:02:11]} {[%emt 00:01:58]} 26. exd5 {[%clk 00:12:07]} {[%emt
00:00:40]} Ng5 {[%clk 00:02:23]} {[%emt 00:00:17]} 27. Nxg5 {[%clk 00:11:47]}
{[%emt 00:00:50]} Qxg5 {[%clk 00:02:43]} {[%emt 00:00:11]} 28. f4 {[%clk
00:11:50]} {[%emt 00:00:26]} Qd8 {[%clk 00:02:58]} {[%emt 00:00:15]} 29. Rd3
{[%clk 00:10:45]} {[%emt 00:01:34]} a5 {[%clk 00:02:34]} {[%emt 00:00:55]} 30.
Rg3 {[%clk 00:10:03]} {[%emt 00:01:11]} c6 {[%clk 00:02:37]} {[%emt 00:00:28]}
31. d6 {[%clk 00:07:59]} {[%emt 00:02:34]} Qb6+ {[%clk 00:02:25]} {[%emt
00:00:42]} 32. Qd4 {[%clk 00:07:35]} {[%emt 00:00:54]} Qxd4+ {[%clk 00:01:49]}
{[%emt 00:01:07]} 33. Rxd4 {[%clk 00:08:00]} {[%emt 00:00:05]} Rab8 {[%clk
00:01:58]} {[%emt 00:00:21]} 34. Kf2 {[%clk 00:06:42]} {[%emt 00:01:47]} Rb4
{[%clk 00:01:54]} {[%emt 00:00:34]} 35. Rgd3 {[%clk 00:06:09]} {[%emt
00:01:02]} g5 {[%clk 00:02:00]} {[%emt 00:00:24]} 36. g3 {[%clk 00:06:21]}
{[%emt 00:00:19]} g4 {[%clk 00:02:09]} {[%emt 00:00:21]} 37. Ke3 {[%clk
00:05:36]} {[%emt 00:01:14]} Rb5 {[%clk 00:02:16]} {[%emt 00:00:24]} 38. Re4
{[%clk 00:04:07]} {[%emt 00:01:59]} h5 {[%clk 00:02:21]} {[%emt 00:00:25]} 39.
Kd4 {[%clk 00:02:36]} {[%emt 00:02:00]} Rd5+ {[%clk 00:01:47]} {[%emt
00:01:04]} 40. Ke3 {[%clk 00:02:48]} {[%emt 00:00:18]} Rb5 {[%clk 00:02:06]}
{[%emt 00:00:12]} 41. Rdd4 {[%clk 00:01:05]} {[%emt 00:02:12]} Kg7 {[%clk
00:01:35]} {[%emt 00:01:01]} 42. Rd2 {[%clk 00:01:06]} {[%emt 00:00:30]} Kg6
{[%clk 00:25:42]} {[%emt 00:06:24]} 43. Kf2 {[%clk 00:17:11]} {[%emt 00:14:24]}
Kf5 {[%clk 00:21:23]} {[%emt 00:04:48]} 44. Red4 {[%clk 00:11:58]} {[%emt
00:05:44]} Rh8 {[%clk 00:17:43]} {[%emt 00:04:10]} 45. Ra4 {[%clk 00:11:59]}
{[%emt 00:00:29]} h4 {[%clk 00:15:48]} {[%emt 00:02:25]} 46. gxh4 {[%clk
00:08:19]} {[%emt 00:04:10]} Rxh4 {[%clk 00:15:40]} {[%emt 00:00:38]} 47. Kg3
{[%clk 00:08:21]} {[%emt 00:00:27]} Rh3+ {[%clk 00:14:43]} {[%emt 00:01:26]} 48.
Kg2 {[%clk 00:08:44]} {[%emt 00:00:07]} Rf3 {[%clk 00:11:11]} {[%emt 00:04:02]}
49. Rf2 {[%clk 00:08:47]} {[%emt 00:00:28]} Re3 {[%clk 00:08:23]} {[%emt
00:03:18]} 50. Rc4 {[%clk 00:06:20]} {[%emt 00:02:56]} Re1 {[%clk 00:07:35]}
{[%emt 00:01:18]} 51. Rd2 {[%clk 00:06:38]} {[%emt 00:00:13]} Rb8 {[%clk
00:03:19]} {[%emt 00:04:46]} 52. Rc5 {[%clk 00:05:27]} {[%emt 00:01:40]} Ra8
{[%clk 00:03:20]} {[%emt 00:00:29]} 53. Rf2 {[%clk 00:05:15]} {[%emt 00:00:42]}
Re3 {[%clk 00:02:52]} {[%emt 00:00:58]} 54. Rc4 {[%clk 00:04:00]} {[%emt
00:01:45]} Re1 {[%clk 00:03:03]} {[%emt 00:00:19]} 55. Ra4 {[%clk 00:03:23]}
{[%emt 00:01:08]} Re3 {[%clk 00:03:13]} {[%emt 00:00:20]} 56. b4 {[%clk
00:03:34]} {[%emt 00:00:19]} Re4 {[%clk 00:02:37]} {[%emt 00:01:07]} 57. Rxa5
{[%emt 00:00:02]} Rxa5 {[%clk 00:02:25]} {[%emt 00:00:42]} 58. bxa5 {[%clk
00:04:31]} {[%emt 00:00:01]} Ra4 {[%clk 00:02:40]} {[%emt 00:00:14]} 59. a6
{[%clk 00:04:13]} {[%emt 00:00:48]} Rxa6 {[%clk 00:02:56]} {[%emt 00:00:13]} 60.
Kg3 {[%clk 00:03:32]} {[%emt 00:01:11]} Ra1 {[%clk 00:02:59]} {[%emt 00:00:28]}
61. b4 {[%clk 00:03:18]} {[%emt 00:00:44]} Re1 {[%clk 00:02:47]} {[%emt
00:00:41]} 62. Kg2 {[%clk 00:02:10]} {[%emt 00:01:39]} Re4 {[%clk 00:02:59]}
{[%emt 00:00:19]} 63. c3 {[%clk 00:01:04]} {[%emt 00:01:36]} Rxf4 {[%clk
00:03:01]} {[%emt 00:00:28]} 64. Rxf4+ {[%clk 00:01:22]} {[%emt 00:00:12]} Kxf4
{[%clk 00:03:19]} {[%emt 00:00:12]} 65. e6 {[%clk 00:00:57]} {[%emt 00:00:55]}
fxe6 {[%clk 00:03:23]} {[%emt 00:00:27]} 66. c4 {[%clk 00:01:12]} {[%emt
00:00:14]} Ke5 {[%clk 00:02:40]} {[%emt 00:01:12]} 67. Kg3 {[%clk 00:00:51]}
{[%emt 00:00:52]} Kxd6 {[%clk 00:02:53]} {[%emt 00:00:17]} 68. Kxg4 {[%clk
00:01:14]} {[%emt 00:00:07]} Ke5 {[%clk 00:02:03]} {[%emt 00:01:20]} 69. b5
{[%clk 00:01:32]} {[%emt 00:00:12]} d5 {[%clk 00:00:49]} {[%emt 00:01:44]} 70.
b6 {[%clk 00:00:54]} {[%emt 00:01:08]} Kd6 {[%clk 00:01:12]} {[%emt 00:00:07]}
71. c5+ {[%clk 00:00:51]} {[%emt 00:00:33]} Kd7 {[%clk 00:01:27]} {[%emt
00:00:16]} 72. Kf4 {[%clk 00:01:01]} {[%emt 00:00:20]} d4 {[%clk 00:01:24]}
{[%emt 00:00:33]} 73. Ke4 {[%clk 00:01:27]} {[%emt 00:00:04]} e5 {[%clk
00:01:27]} {[%emt 00:00:28]} 74. h4 {[%clk 00:01:51]} {[%emt 00:00:05]} 1-0